fUST/lending_fUST_20240216
["ID","MTS","AMOUNT","RATE_DAILY","PERIOD"]
[314172767,1708042245604,-796.80003378,0.00022191,2]
[314172768,1708042245614,-624.2,0.00022191,2]
[314172769,1708042245623,-554.07303476,0.00022191,2]
[314172770,1708042245632,-21438.34,0.00022191,2]
[314172771,1708042245641,-500.0,0.00022191,2]
[314172772,1708042245652,-500.0,0.00022191,2]
[314172773,1708042245661,-500.0,0.00022191,2]
[314172774,1708042245671,-5880.36,0.00022191,2]
[314172775,1708042245680,-500.0,0.00022191,2]
[314172776,1708042245690,-500.0,0.00022191,2]
[314172777,1708042245700,-500.0,0.00022191,2]
[314172778,1708042245709,-2192.23,0.00022191,2]
[314172779,1708042245718,-1637.14,0.00022191,2]
[314172780,1708042245728,-500.0,0.00022191,2]
[314172781,1708042245737,-500.0,0.00022191,2]
[314172782,1708042245746,-500.0,0.00022191,2]
[314172783,1708042245756,-5000.0,0.00022192,2]
[314172784,1708042245766,-60284.59350133,0.00022192,2]
[314172785,1708042245776,-5000.0,0.00022192,2]
[314172786,1708042245785,-5000.0,0.00022192,2]
[314172787,1708042245794,-5000.0,0.00022192,2]
[314172788,1708042245804,-1697.4933536,0.00022192,2]
[314172789,1708042245813,-1132.03170442,0.00022246,2]
[314172790,1708042245822,-300.0,0.00022361,2]
[314172791,1708042245831,-500.0,0.00022465,2]
[314172792,1708042245840,-500.0,0.00022465,2]
[314172793,1708042245849,-553.76,0.00022465,2]
[314172794,1708042245858,-577.4,0.00022465,2]
[314172795,1708042245867,-203.02515031,0.00022465,2]
[314172804,1708042246765,-4160.16,0.00021587,3]
[314172805,1708042246775,-164.95275366,0.00021917,2]
[314172806,1708042246783,-505.49748624,0.00021917,2]
[314172807,1708042246792,-296.97484969,0.00022465,2]
[314172808,1708042246801,-500.0,0.00022465,2]
[314172809,1708042246810,-499.85559271,0.00022465,2]
[314172810,1708042246819,-500.0,0.00022465,2]
[314172811,1708042246828,-500.0,0.00022465,2]
[314172812,1708042246836,-500.0,0.00022465,2]
[314172813,1708042246845,-794.33,0.00022465,2]
[314172814,1708042246854,-1228.4,0.00022465,2]
[314172815,1708042246863,-500.0,0.00022465,2]
[314172816,1708042246872,-1839.42,0.00022465,2]
[314172817,1708042246881,-500.0,0.00022465,2]
[314172818,1708042246890,-2939.04,0.00022465,2]
[314172819,1708042246899,-1836.72,0.00022465,2]
[314172820,1708042246909,-500.0,0.00022465,2]
[314172821,1708042246918,-1108.53,0.00022465,2]
[314172822,1708042246927,-500.0,0.00022465,2]
[314172823,1708042246938,-500.0,0.00022465,2]
[314172824,1708042246947,-500.0,0.00022465,2]
[314172825,1708042246955,-512.07,0.00022465,2]
[314172826,1708042246964,-500.0,0.00022465,2]
[314172827,1708042246973,-500.0,0.00022465,2]
[314172828,1708042246984,-1809.06,0.00022465,2]
[314172829,1708042246993,-500.0,0.00022465,2]
[314172830,1708042247002,-500.0,0.00022465,2]
[314172831,1708042247012,-500.0,0.00022465,2]
[314172832,1708042247023,-500.0,0.00022465,2]
[314172833,1708042247033,-500.0,0.00022465,2]
[314172834,1708042247042,-500.0,0.00022465,2]
[314172835,1708042247051,-500.0,0.00022465,2]
[314172836,1708042247060,-500.0,0.00022465,2]
[314172837,1708042247069,-500.0,0.00022465,2]
[314172838,1708042247078,-862.59,0.00022465,2]
[314172839,1708042247087,-1109.94,0.00022465,2]
[314172840,1708042247098,-500.0,0.00022465,2]
[314172841,1708042247109,-1711.1,0.00022465,2]
[314172842,1708042247119,-869.24,0.00022465,2]
[314172843,1708042247128,-656.04,0.00022465,2]
[314172844,1708042247139,-500.0,0.00022465,2]
[314172845,1708042247148,-500.0,0.00022465,2]
[314172846,1708042247158,-500.0,0.00022465,2]
[314172847,1708042247167,-527.57,0.00022465,2]
[314172848,1708042247176,-324.36232013,0.00022465,2]
[314172849,1708042247187,-974.63,0.00022465,2]
[314172850,1708042247197,-786.22,0.00022465,2]
[314172851,1708042247206,-500.0,0.00022465,2]
[314172852,1708042247215,-500.0,0.00022465,2]
[314172853,1708042247224,-522.77,0.00022465,2]
[314172854,1708042247234,-593.78,0.00022465,2]
[314172855,1708042247243,-500.0,0.00022465,2]
[314172856,1708042247252,-500.0,0.00022465,2]
[314172857,1708042247264,-500.0,0.00022465,2]
[314172858,1708042247275,-1124.91,0.00022465,2]
[314172859,1708042247286,-556.28,0.00022465,2]
[314172860,1708042247295,-500.0,0.00022465,2]
[314172861,1708042247305,-8512.42,0.00022465,2]
[314172862,1708042247315,-500.0,0.00022465,2]
[314172863,1708042247326,-3541.9,0.00022465,2]
[314172864,1708042247386,-10110.81,0.00022465,2]
[314172865,1708042247397,-3345.0,0.00022465,2]
[314172866,1708042247408,-579.26416419,0.00022465,2]
[314172867,1708042247417,-500.0,0.00022465,2]
[314172868,1708042247426,-3613.27,0.00022465,2]
[314172869,1708042247435,-1760.54,0.00022465,2]
[314172870,1708042247444,-794.73,0.00022465,2]
[314172871,1708042247453,-2784.92,0.00022465,2]
[314172872,1708042247462,-500.0,0.00022465,2]
[314172873,1708042247472,-1922.73,0.00022465,2]
[314172874,1708042247483,-1883.91,0.00022465,2]
[314172875,1708042247493,-1000.0,0.00022465,2]
[314172876,1708042247504,-500.0,0.00022465,2]
[314172877,1708042247513,-13431.45,0.00022465,2]
[314172878,1708042247523,-1323.0,0.00022465,2]
[314172879,1708042247533,-500.0,0.00022465,2]
[314172880,1708042247542,-500.0,0.00022465,2]
[314172881,1708042247551,-2961.42,0.00022465,2]
[314172882,1708042247561,-500.0,0.00022465,2]
[314172883,1708042247570,-2564.09,0.00022465,2]
[314172884,1708042247579,-505.81901091,0.00022465,2]
[314172885,1708042247589,-500.0,0.00022465,2]
[314172886,1708042247599,-634.13,0.00022465,2]
[314172887,1708042247609,-350.7128037,0.00022465,2]
[314172888,1708042247618,-500.0,0.00022465,2]
[314172889,1708042247629,-1197.91,0.00022465,2]
[314172890,1708042247638,-15704.19,0.00022465,2]
[314172891,1708042247648,-500.0,0.00022465,2]
[314172892,1708042247659,-500.0,0.00022465,2]
[314172893,1708042247668,-841.79,0.00022465,2]
[314172894,1708042247677,-2593.35,0.00022465,2]
[314172895,1708042247687,-500.0,0.00022465,2]
[314172896,1708042247697,-14894.42,0.00022465,2]
[314172897,1708042247707,-13217.07,0.00022465,2]
[314172898,1708042247716,-659.09,0.00022465,2]
[314172899,1708042247726,-624.2,0.00022465,2]
[314172900,1708042247735,-21438.34,0.00022465,2]
[314172901,1708042247744,-500.0,0.00022465,2]
[314172902,1708042247755,-302.14032212,0.00022465,2]
[314172903,1708042247765,-5880.36,0.00022465,2]
[314172904,1708042247774,-500.0,0.00022465,2]
[314172905,1708042247783,-500.0,0.00022465,2]
[314172906,1708042247794,-2192.23,0.00022465,2]
[314172907,1708042247804,-1637.14,0.00022465,2]
[314172908,1708042247824,-500.0,0.00022465,2]
[314172909,1708042247843,-500.0,0.00022465,2]
[314172910,1708042247860,-579.0,0.000225,2]
[314172911,1708042247878,-500.0,0.000225,2]
[314172912,1708042247893,-200.0,0.00022609,7]
[314172913,1708042247910,-360.0,0.00022609,7]
[314172914,1708042247929,-1000.0,0.00022629,2]
[314172915,1708042247946,-1000.0,0.0002264,2]
[314172916,1708042247964,-1000.0,0.00022643,2]
[314172917,1708042247980,-1000.0,0.00022657,2]
[314172918,1708042247998,-1000.0,0.00022666,2]
[314172919,1708042248017,-550.82910765,0.00022668,2]
[314172920,1708042248036,-1000.0,0.00022681,2]
[314172921,1708042248048,-1000.0,0.00022686,2]
[314172922,1708042248064,-500.0,0.00022739,2]
[314172923,1708042248079,-553.76,0.00022739,2]
[314172924,1708042248092,-577.4,0.00022739,2]
[314172925,1708042248106,-380.78608423,0.00022739,2]
[314172926,1708042248120,-500.0,0.00022739,2]
[314172927,1708042248134,-500.0,0.00022739,2]
[314172928,1708042248147,-500.0,0.00022739,2]
[314172929,1708042248161,-500.0,0.00022739,2]
[314172930,1708042248176,-794.33,0.00022739,2]
[314172931,1708042248189,-1228.4,0.00022739,2]
[314172932,1708042248205,-500.0,0.00022739,2]
[314172933,1708042248218,-1839.42,0.00022739,2]
[314172934,1708042248232,-500.0,0.00022739,2]
[314172935,1708042248246,-2939.04,0.00022739,2]
[314172936,1708042248260,-1836.72,0.00022739,2]
[314172937,1708042248274,-500.0,0.00022739,2]
[314172938,1708042248287,-1108.53,0.00022739,2]
[314172939,1708042248300,-460.82812338,0.00022739,2]
[314172940,1708042248314,-507.61514363,0.00022739,2]
[314172941,1708042248323,-613.43903521,0.00022739,2]
[314172942,1708042248332,-512.07,0.00022739,2]
[314172943,1708042248341,-500.0,0.00022739,2]
[314172944,1708042248350,-500.0,0.00022739,2]
[314172945,1708042248359,-1809.06,0.00022739,2]
[314172946,1708042248368,-500.0,0.00022739,2]
[314172947,1708042248379,-500.0,0.00022739,2]
[314172948,1708042248388,-500.0,0.00022739,2]
[314172949,1708042248397,-553.38697789,0.00022739,2]
[314172950,1708042248407,-500.0,0.00022739,2]
[314172951,1708042248528,-500.0,0.00022739,2]
[314172952,1708042248544,-500.0,0.00022739,2]
[314172953,1708042248554,-500.0,0.00022739,2]
[314172954,1708042248566,-500.0,0.00022739,2]
[314172955,1708042248576,-862.59,0.00022739,2]
[314172956,1708042248586,-1109.94,0.00022739,2]
[314172957,1708042248595,-500.0,0.00022739,2]
[314172958,1708042248605,-1711.1,0.00022739,2]
[314172959,1708042248615,-151.0,0.00022739,2]
[314172960,1708042248624,-869.24,0.00022739,2]
[314172961,1708042248635,-656.04,0.00022739,2]
[314172962,1708042248644,-500.0,0.00022739,2]
[314172963,1708042248653,-500.0,0.00022739,2]
[314172964,1708042248663,-500.0,0.00022739,2]
[314172965,1708042248672,-527.57,0.00022739,2]
[314172966,1708042248682,-974.63,0.00022739,2]
[314172967,1708042248691,-151.0,0.00022739,2]
[314172968,1708042248700,-786.22,0.00022739,2]
[314172969,1708042248710,-232.03608461,0.00022739,2]
[314172970,1708042248719,-647.88090187,0.00022739,2]
[314172971,1708042248728,-522.77,0.00022739,2]
[314172972,1708042248737,-593.78,0.00022739,2]
[314172973,1708042248746,-411.11924494,0.00022739,2]
[314172974,1708042248756,-500.0,0.00022739,2]
[314172975,1708042248765,-500.0,0.00022739,2]
[314172976,1708042248773,-1124.91,0.00022739,2]
[314172977,1708042248782,-556.28,0.00022739,2]
[314172978,1708042248791,-500.0,0.00022739,2]
[314172979,1708042248800,-8512.42,0.00022739,2]
[314172980,1708042248809,-500.0,0.00022739,2]
[314172981,1708042248819,-3541.9,0.00022739,2]
[314172982,1708042248828,-10110.81,0.00022739,2]
[314172983,1708042248837,-3345.0,0.00022739,2]
[314172984,1708042248845,-151.0,0.00022739,2]
[314172985,1708042248854,-3613.27,0.00022739,2]
[314172986,1708042248863,-1760.54,0.00022739,2]
[314172987,1708042248872,-794.73,0.00022739,2]
[314172988,1708042248881,-1687.34544249,0.00022739,2]
[314172989,1708042366805,327.75493645,0.00019125,2]
[314172990,1708042700000,415.55,0.00033,120]
[314173017,1708043433904,-2516.36245996,0.00020365,2]
[314173018,1708043433917,-2766.6277184,0.00020365,2]
[314173019,1708043433926,-1222.4988425,0.00020366,2]
[314173020,1708043433936,-24900.0,0.00020366,2]
[314173021,1708043433945,-168.809424,0.00020848,2]
[314173022,1708043433954,-200.0,0.00021131,7]
[314173023,1708043433963,-200.0,0.00021131,7]
[314173024,1708043433973,-3378.13898893,0.000217,3]
[314173025,1708043433983,-1000.0,0.00021714,2]
[314173026,1708043433992,-78617.23421728,0.00021715,2]
[314173073,1708043437799,-301.58992803,0.00021714,2]
[314173075,1708043437809,-500.0,0.00021714,2]
[314173077,1708043437818,-500.0,0.00021714,2]
[314173079,1708043437828,-500.0,0.00021714,2]
[314173081,1708043437837,-500.0,0.00021714,2]
[314173083,1708043437847,-500.0,0.00021714,2]
[314173085,1708043437856,-217.58507873,0.00021714,2]
[314173087,1708043437865,-500.0,0.00021714,2]
[314173089,1708043437873,-500.0,0.00021714,2]
[314173090,1708043437883,-500.0,0.00021714,2]
[314173092,1708043437892,-500.0,0.00021714,2]
[314173094,1708043437902,-500.0,0.00021714,2]
[314173097,1708043437911,-500.0,0.00021714,2]
[314173098,1708043437920,-500.0,0.00021714,2]
[314173100,1708043437929,-500.0,0.00021714,2]
[314173102,1708043437939,-500.0,0.00021714,2]
[314173105,1708043437949,-500.0,0.00021714,2]
[314173106,1708043437958,-500.0,0.00021714,2]
[314173108,1708043437967,-500.0,0.00021714,2]
[314173110,1708043437976,-500.0,0.00021714,2]
[314173113,1708043437987,-519.00403464,0.00021714,2]
[314173114,1708043437998,-500.0,0.00021714,2]
[314173117,1708043438008,-500.0,0.00021714,2]
[314173118,1708043438018,-500.0,0.00021714,2]
[314173120,1708043438029,-500.0,0.00021714,2]
[314173122,1708043438038,-500.0,0.00021714,2]
[314173124,1708043438047,-500.0,0.00021714,2]
[314173126,1708043438057,-500.0,0.00021714,2]
[314173137,1708043438147,-500.0,0.00021714,2]
[314173139,1708043438157,-500.0,0.00021714,2]
[314173141,1708043438167,-500.0,0.00021714,2]
[314173143,1708043438176,-500.0,0.00021714,2]
[314173144,1708043438186,-500.0,0.00021714,2]
[314173145,1708043438195,-500.0,0.00021714,2]
[314173146,1708043438205,-500.0,0.00021714,2]
[314173148,1708043438214,-500.0,0.00021714,2]
[314173150,1708043438223,-500.0,0.00021714,2]
[314173152,1708043438233,-500.0,0.00021714,2]
[314173153,1708043438242,-500.0,0.00021714,2]
[314173155,1708043438251,-500.0,0.00021714,2]
[314173156,1708043438263,-500.0,0.00021714,2]
[314173157,1708043438272,-486.14153652,0.00021714,2]
[314173158,1708043438284,-500.0,0.00021714,2]
[314173159,1708043438293,-500.0,0.00021714,2]
[314173160,1708043438302,-500.0,0.00021714,2]
[314173161,1708043438312,-346.85719144,0.00021714,2]
[314173162,1708043438322,-500.0,0.00021714,2]
[314173163,1708043438332,-500.0,0.00021714,2]
[314173164,1708043438341,-500.0,0.00021714,2]
[314173165,1708043438351,-500.0,0.00021714,2]
[314173166,1708043438360,-500.0,0.00021714,2]
[314173167,1708043438369,-500.0,0.00021714,2]
[314173168,1708043438378,-500.0,0.00021714,2]
[314173169,1708043438387,-500.0,0.00021714,2]
[314173170,1708043438396,-500.0,0.00021714,2]
[314173171,1708043438405,-500.0,0.00021714,2]
[314173172,1708043438414,-500.0,0.00021714,2]
[314173173,1708043438423,-500.0,0.00021714,2]
[314173174,1708043438432,-500.0,0.00021714,2]
[314173175,1708043438441,-500.0,0.00021714,2]
[314173176,1708043438451,-500.0,0.00021714,2]
[314173177,1708043438460,-500.0,0.00021714,2]
[314173178,1708043438469,-500.0,0.00021714,2]
[314173179,1708043438478,-500.0,0.00021714,2]
[314173180,1708043438487,-500.0,0.00021714,2]
[314173181,1708043438496,-500.0,0.00021714,2]
[314173182,1708043438505,-500.0,0.00021714,2]
[314173183,1708043438515,-500.0,0.00021714,2]
[314173184,1708043438524,-500.0,0.00021714,2]
[314173185,1708043438534,-500.0,0.00021714,2]
[314173186,1708043438542,-500.0,0.00021714,2]
[314173187,1708043438552,-500.0,0.00021714,2]
[314173188,1708043438561,-500.0,0.00021714,2]
[314173189,1708043438570,-500.0,0.00021714,2]
[314173190,1708043438579,-192.15412071,0.00021714,2]
[314173191,1708043438588,-294.51890206,0.00021714,2]
[314173192,1708043438597,-500.0,0.00021714,2]
[314173193,1708043438606,-500.0,0.00021714,2]
[314173194,1708043438616,-500.0,0.00021714,2]
[314173195,1708043438624,-500.0,0.00021714,2]
[314173196,1708043438634,-500.0,0.00021714,2]
[314173197,1708043438643,-500.0,0.00021714,2]
[314173198,1708043438652,-500.0,0.00021714,2]
[314173199,1708043438661,-500.0,0.00021714,2]
[314173200,1708043438669,-500.0,0.00021714,2]
[314173201,1708043438678,-500.0,0.00021714,2]
[314173202,1708043438687,-500.0,0.00021714,2]
[314173203,1708043438697,-500.0,0.00021714,2]
[314173204,1708043438707,-500.0,0.00021714,2]
[314173205,1708043438716,-500.0,0.00021714,2]
[314173206,1708043438725,-500.0,0.00021714,2]
[314173207,1708043438735,-500.0,0.00021714,2]
[314173208,1708043438743,-500.0,0.00021714,2]
[314173209,1708043438752,-500.0,0.00021714,2]
[314173210,1708043438763,-197382.76578272,0.00021715,2]
[314173211,1708043438772,-3253.37126141,0.00021817,2]
[314173212,1708043438781,-1000.0,0.00021851,2]
[314173213,1708043438790,-500.0,0.00021917,2]
[314173214,1708043438799,-500.0,0.00021917,2]
[314173215,1708043438809,-500.0,0.00021917,2]
[314173216,1708043438819,-500.0,0.00021917,2]
[314173217,1708043438828,-500.0,0.00021917,2]
[314173218,1708043438838,-519.75741861,0.00021917,2]
[314173219,1708043438847,-500.0,0.00021917,2]
[314173220,1708043438856,-396.51386456,0.00021917,2]
[314173221,1708043438865,-500.0,0.00021917,2]
[314173222,1708043438875,-502.92013251,0.00021917,2]
[314173223,1708043438884,-506.91722832,0.00021917,2]
[314173224,1708043438894,-500.0,0.00021917,2]
[314173225,1708043438904,-1008.71,0.00021917,2]
[314173226,1708043438914,-500.0,0.00021917,2]
[314173227,1708043438923,-500.0,0.00021917,2]
[314173228,1708043438932,-500.0,0.00021917,2]
[314173229,1708043438941,-501.3550161,0.00021917,2]
[314173230,1708043438951,-500.0,0.00021917,2]
[314173231,1708043438961,-575.26411866,0.00021917,2]
[314173232,1708043438970,-500.0,0.00021917,2]
[314173233,1708043438979,-552.62557982,0.00021917,2]
[314173234,1708043438988,-500.0,0.00021917,2]
[314173235,1708043438998,-500.0,0.00021917,2]
[314173236,1708043439008,-500.0,0.00021917,2]
[314173237,1708043439018,-500.0,0.00021917,2]
[314173238,1708043439027,-500.0,0.00021917,2]
[314173239,1708043439036,-500.0,0.00021917,2]
[314173240,1708043439046,-500.0,0.00021917,2]
[314173241,1708043439056,-500.0,0.00021917,2]
[314173242,1708043439066,-500.0,0.00021917,2]
[314173243,1708043439075,-500.0,0.00021917,2]
[314173244,1708043439084,-376.30669762,0.00021917,2]
[314173245,1708043439093,-500.0,0.00021917,2]
[314173246,1708043439102,-971.2,0.00021917,2]
[314173247,1708043439111,-500.0,0.00021917,2]
[314173248,1708043439120,-532.10150668,0.00021917,2]
[314173249,1708043439130,-500.0,0.00021917,2]
[314173250,1708043439139,-239.15285987,0.00021917,2]
[314173251,1708043439148,-500.0,0.00021917,2]
[314173252,1708043439158,-422.59488046,0.00021917,2]
[314173253,1708043439168,-491.43111383,0.00021917,2]
[314173254,1708043439178,-366.70770571,0.00021917,2]
[314173255,1708043439187,-3179.39,0.00021917,2]
[314173256,1708043439196,-1692.75,0.00021917,2]
[314173257,1708043439205,-1607.13,0.00021917,2]
[314173258,1708043439214,-500.0,0.00021917,2]
[314173259,1708043439223,-2711.62,0.00021917,2]
[314173260,1708043439232,-506.95127322,0.00021917,2]
[314173261,1708043439241,-514.91981209,0.00021917,2]
[314173262,1708043439251,-500.0,0.00021917,2]
[314173263,1708043439261,-500.0,0.00021917,2]
[314173264,1708043439270,-500.0,0.00021917,2]
[314173265,1708043439284,-500.0,0.00021917,2]
[314173266,1708043439293,-500.0,0.00021917,2]
[314173267,1708043439302,-500.0,0.00021917,2]
[314173268,1708043439311,-237.61082891,0.00021917,2]
[314173269,1708043439322,-500.0,0.00021917,2]
[314173270,1708043439331,-500.0,0.00021917,2]
[314173271,1708043439340,-500.0,0.00021917,2]
[314173272,1708043439349,-500.0,0.00021917,2]
[314173273,1708043439360,-500.0,0.00021917,2]
[314173274,1708043439369,-339.19159002,0.00021917,2]
[314173275,1708043439378,-500.0,0.00021917,2]
[314173276,1708043439387,-504.03989668,0.00021917,2]
[314173277,1708043439396,-500.0,0.00021917,2]
[314173278,1708043439406,-500.0,0.00021917,2]
[314173279,1708043439415,-500.0,0.00021917,2]
[314173280,1708043439424,-500.0,0.00021917,2]
[314173281,1708043439433,-500.0,0.00021917,2]
[314173282,1708043439442,-500.0,0.00021917,2]
[314173283,1708043439452,-500.0,0.00021917,2]
[314173284,1708043439461,-500.0,0.00021917,2]
[314173285,1708043439470,-500.0,0.00021917,2]
[314173286,1708043439481,-347.51683518,0.00021917,2]
[314173287,1708043439554,-553.86325545,0.00021917,2]
[314173288,1708043439564,-500.0,0.00021917,2]
[314173289,1708043439573,-500.0,0.00021917,2]
[314173290,1708043439582,-500.0,0.00021917,2]
[314173291,1708043439591,-501.56566972,0.00021917,2]
[314173292,1708043439601,-500.0,0.00021917,2]
[314173293,1708043439610,-500.0,0.00021917,2]
[314173294,1708043439619,-1658.3,0.00021917,2]
[314173295,1708043439628,-728.5,0.00021917,2]
[314173296,1708043439637,-500.0,0.00021917,2]
[314173297,1708043439647,-500.0,0.00021917,2]
[314173298,1708043439657,-500.0,0.00021917,2]
[314173299,1708043439666,-500.0,0.00021917,2]
[314173300,1708043439677,-500.0,0.00021917,2]
[314173301,1708043439686,-393.93306636,0.00021917,2]
[314173302,1708043439696,-500.0,0.00021917,2]
[314173303,1708043439705,-500.0,0.00021917,2]
[314173304,1708043439716,-500.0,0.00021917,2]
[314173305,1708043439726,-582.68564277,0.00021917,2]
[314173306,1708043439735,-500.0,0.00021917,2]
[314173307,1708043439745,-500.0,0.00021917,2]
[314173308,1708043439754,-404.84073199,0.00021917,2]
[314173309,1708043439766,-790.7,0.00021917,2]
[314173310,1708043439775,-516.94149683,0.00021917,2]
[314173311,1708043439784,-506.44463582,0.00021917,2]
[314173312,1708043439794,-638.34637956,0.00021917,2]
[314173313,1708043439803,-500.0,0.00021917,2]
[314173314,1708043439812,-607.71,0.00021917,2]
[314173315,1708043439820,-500.0,0.00021917,2]
[314173316,1708043439829,-512.11252895,0.00021917,2]
[314173317,1708043439838,-500.0,0.00021917,2]
[314173318,1708043439846,-557.13823248,0.00021917,2]
[314173319,1708043439856,-1000.0,0.00021917,5]
[314173320,1708043439864,-500.0,0.00021917,2]
[314173321,1708043439873,-507.21096205,0.00021917,2]
[314173322,1708043439882,-507.50151569,0.00021917,2]
[314173323,1708043439891,-437.52618809,0.00021917,2]
[314173325,1708043439900,-500.0,0.00021917,2]
[314173326,1708043439909,-500.0,0.00021917,2]
[314173327,1708043439919,-328.32247603,0.00021917,2]
[314173328,1708043439928,-511.75666933,0.00021917,2]
[314173329,1708043439936,-500.0,0.00021917,2]
[314173330,1708043439945,-631.63,0.00021917,2]
[314173331,1708043439954,-500.0,0.00021917,2]
[314173332,1708043439963,-500.0,0.00021917,2]
[314173333,1708043439971,-1568.5,0.00021917,2]
[314173334,1708043439980,-500.0,0.00021917,2]
[314173335,1708043439989,-500.0,0.00021917,2]
[314173336,1708043439998,-500.0,0.00021917,2]
[314173337,1708043440009,-500.0,0.00021917,2]
[314173338,1708043440018,-506.84728892,0.00021917,2]
[314173339,1708043440028,-260.37284919,0.00021917,2]
[314173340,1708043440037,-796.8,0.00021917,2]
[314173342,1708043440045,-516.26871262,0.00021917,2]
[314173343,1708043440054,-504.12580923,0.00021917,2]
[314173345,1708043440063,-500.0,0.00021917,2]
[314173347,1708043440072,-500.0,0.00021917,2]
[314173348,1708043440082,-516.39323085,0.00021917,2]
[314173349,1708043440090,-500.0,0.00021917,2]
[314173350,1708043440099,-500.0,0.00021917,2]
[314173351,1708043440108,-500.0,0.00021917,2]
[314173352,1708043440117,-500.0,0.00021917,2]
[314173353,1708043440126,-385.67452166,0.00021917,2]
[314173354,1708043440136,-500.0,0.00021917,2]
[314173355,1708043440144,-500.0,0.00021917,2]
[314173356,1708043440153,-500.0,0.00021917,2]
[314173357,1708043440162,-601.37,0.00021917,2]
[314173358,1708043440171,-500.0,0.00021917,2]
[314173359,1708043440180,-500.0,0.00021917,2]
[314173360,1708043440188,-500.0,0.00021917,2]
[314173361,1708043440197,-506.57653874,0.00021917,2]
[314173362,1708043440206,-500.0,0.00021917,2]
[314173363,1708043440215,-501.76829055,0.00021917,2]
[314173364,1708043440224,-598.2,0.00021917,2]
[314173365,1708043440234,-500.0,0.00021917,2]
[314173366,1708043440243,-500.0,0.00021917,2]
[314173367,1708043440252,-500.0,0.00021917,2]
[314173368,1708043440264,-500.0,0.00021917,2]
[314173370,1708043440273,-500.0,0.00021917,2]
[314173371,1708043440285,-596.22880641,0.00021917,2]
[314173373,1708043440294,-510.68739051,0.00021917,2]
[314173375,1708043440304,-567.84500468,0.00021917,2]
[314173378,1708043440313,-505.61326552,0.00021917,2]
[314173379,1708043440322,-893.41,0.00021917,2]
[314173380,1708043440332,-557.05,0.00021917,2]
[314173381,1708043440341,-500.0,0.00021917,2]
[314173382,1708043440351,-720.7,0.00021917,2]
[314173383,1708043440361,-580.83,0.00021917,2]
[314173384,1708043440369,-495.88183261,0.00021917,2]
[314173385,1708043440378,-413.84859756,0.00021917,2]
[314173386,1708043440387,-500.0,0.00021917,2]
[314173387,1708043440396,-500.0,0.00021917,2]
[314173388,1708043440406,-266.15669203,0.00021917,2]
[314173389,1708043440415,-500.0,0.00021917,2]
[314173390,1708043440424,-500.0,0.00021917,2]
[314173391,1708043440433,-500.0,0.00021917,2]
[314173392,1708043440442,-397.46061973,0.00021917,2]
[314173393,1708043440452,-500.0,0.00021917,2]
[314173394,1708043440460,-500.0,0.00021917,2]
[314173395,1708043440470,-500.0,0.00021917,2]
[314173396,1708043440479,-500.0,0.00021917,2]
[314173397,1708043440488,-500.0,0.00021917,2]
[314173398,1708043440499,-500.0,0.00021917,2]